{"text_format":"1","workbook":"xlsx","n_sheets":2,"sheets":["OrderSheet","Sheet1"],"not_rendered":{"charts":0,"images":0,"macros":1,"external_links":0,"defined_names":4,"comments":1,"pivot_tables":0},"unopened":[],"bounds":{"document_bytes":16777216,"sheet_cells":100000,"rows_first":2000,"rows_last":500,"rows_between":2000,"halvings":0,"cell_chars":16384,"cell_head_chars":4096},"cells_cut":0,"cells_raw":0,"read":"whole","date_system":"1900"}

{"sheet":"OrderSheet","index":0,"n_rows":260,"n_cols":40,"rows_kept":260,"cut":false,"hidden":false,"merged":[[9,2,9,3],[6,2,6,3],[2,2,2,3],[3,2,3,3],[4,2,4,3],[5,2,5,3],[7,2,7,3],[8,2,8,3]]}
[null,"KEEN 2023 Spring/Summer Order Sheet"]
[null,null,null,null,null,null,null,null,null,null,null,null,null,null,null,null,null,null,null,null,null,null,null,null,null,null,null,"数量合計",null,null,"数量比率",null,null,"上代合計",null,null,"下代合計"]
[null,"オーダー種類","Softgoods",null,null,null,null,null,null,null,null,null,null,null,null,null,null,null,null,null,null,null,null,null,null,null,"CATEGORY","1st","Follow","計","1st","Follow","計","1st","Follow","計","1st","Follow","計"]
[null,"提出期限",null,null,null,null,null,null,null,null,null,null,null,null,null,null,null,null,null,null,null,null,null,null,null,null,"Sandal",{"$f":"SUMIF($E$18:$E$260,$AA4,AE$18:AE$260)","v":0},{"$f":"SUMIF($E$18:$E$260,$AA4,AF$18:AF$260)","v":0},{"$f":"SUMIF($E$18:$E$260,$AA4,AG$18:AG$260)","v":0},{"$f":"IF(ISERROR(AB4/AB$13),\"\",AB4/AB$13)","v":""},{"$f":"IF(ISERROR(AC4/AC$13),\"\",AC4/AC$13)","v":""},{"$f":"IF(ISERROR(AD4/AD$13),\"\",AD4/AD$13)","v":""},{"$f":"SUMIF($E$18:$E$260,$AA4,AH$18:AH$260)","v":0},0,0,0,0,0]
[null,"得意先名",null,null,null,null,null,null,null,null,null,null,null,null,null,null,null,null,null,null,null,null,null,null,null,null,"Outdoor",0,0,0,"","","",0,0,0,0,0,0]
[null,"店舗・帳合先",null,null,null,null,null,null,null,null,null,null,null,null,null,null,null,null,null,null,null,null,null,null,null,null,"Uneek",0,0,0,"","","",0,0,0,0,0,0]
[null,"得意先コード",null,null,null,null,null,null,null,null,null,null,null,null,null,null,null,null,null,null,null,null,null,null,null,null,"Lifestyle",0,0,0,"","","",0,0,0,0,0,0]
[null,"KEEN担当者",null,null,null,null,null,null,null,null,null,null,null,null,null,null,null,null,null,null,null,null,null,null,null,null,"Kids",0,0,0,"","","",0,0,0,0,0,0]
[null,"掛率（％）",null,null,null,null,null,null,null,null,null,null,null,null,null,null,null,null,null,null,null,null,null,null,null,null,"WORK",0,0,0,"","","",0,0,0,0,0,0]
[null,"記入日",null,null,null,null,null,null,null,null,null,null,null,null,null,null,null,null,null,null,null,null,null,null,null,null,"Softgoods",0,0,0,"","","",0,0,0,0,0,0]
[null,null,null,null,null,null,null,null,null,null,null,null,null,null,null,null,null,null,null,null,null,null,null,null,null,null,null,0,0,0,"","","",0,0,0,0,0,0]
[null,null,null,null,null,null,null,null,null,null,null,null,null,null,null,null,null,null,null,null,null,null,null,null,null,null,null,0,0,0,"","","",0,0,0,0,0,0]
[null,null,null,null,null,null,null,null,null,null,null,null,null,null,null,null,null,null,null,null,null,null,null,null,null,null,"TOTAL",{"$f":"SUM(AB4:AB12)","v":0},{"$f":"SUM(AC4:AC12)","v":0},0,"","","",{"$f":"SUM(AH4:AH12)","v":0},{"$f":"SUM(AI4:AI12)","v":0},0,{"$f":"SUM(AK4:AK12)","v":0},{"$f":"SUM(AL4:AL12)","v":0},0]
[]
[null,null,null,null,null,null,null,null,null,null,null,null,null,null,null,null,{"$f":"SUBTOTAL(9,Q18:Q260)","v":0},0,0,0,0,0,0,0,0,0,0,0,0,0,0,0,0,0,0,0,0,0,0]
[null,null,null,null,null,null,null,null,null,null,null,null,null,null,null,"希望納期","12月",null,"1月",null,"2月",null,"3月",null,"4月",null,"5月",null,"6月",null,"数量合計",null,null,"上代合計",null,null,"下代合計"]
[null,"Catalog/LINE","ページ数","NEW C/O","CATEGORY","GENDER","早締め","品名(E)","品名(ｶﾅ)","カラー","上代（税抜）","発売月","品番","サイズ","JPｻｲｽﾞ(cm)","UPC","1st","Follow","1st","Follow","1st","Follow","1st","Follow","1st","Follow","1st","Follow","1st","Follow","1st","Follow","計","1st","Follow","計","1st","Follow","計","備考"]
[null,"Inline",116,"NEW","Softgoods","Unisex",null,"TABI GRIP SOCKS QUARTER","タビ グリップ ソックス クウォーター","Safari",2400,3,"TBDS23009","S","23～25cm","-",null,null,null,null,null,null,null,null,null,null,null,null,null,null,{"$f":"IF(SUMIF($Q$17:$AD$17,AE$17,$Q18:$AD18)=0,\"\",SUMIF($Q$17:$AD$17,AE$17,$Q18:$AD18))","v":""},"",{"$f":"IF(SUM(AE18:AF18)=0,\"\",SUM(AE18:AF18))","v":""},{"$f":"IF(ISERROR($K18*AE18),\"\",$K18*AE18)","v":""},{"$f":"IF(ISERROR($K18*AF18),\"\",$K18*AF18)","v":""},{"$f":"IF(SUM(AH18:AI18)=0,\"\",SUM(AH18:AI18))","v":""},{"$f":"IF(ISERROR($K18*AE18*$C$9),\"\",$K18*AE18*$C$9)","v":""},{"$f":"IF(ISERROR($K18*AF18*$C$9),\"\",$K18*AF18*$C$9)","v":""},{"$f":"IF(SUM(AK18:AL18)=0,\"\",SUM(AK18:AL18))","v":""}]
[null,"Inline",116,"NEW","Softgoods","Unisex",null,"TABI GRIP SOCKS QUARTER","タビ グリップ ソックス クウォーター","Safari",2400,3,"TBDS23009","M","25～27cm","-",null,null,null,null,null,null,null,null,null,null,null,null,null,null,"","","","","","","","",""]
[null,"Inline",116,"NEW","Softgoods","Unisex",null,"TABI GRIP SOCKS QUARTER","タビ グリップ ソックス クウォーター","Safari",2400,3,"TBDS23009","L","27～29cm","-",null,null,null,null,null,null,null,null,null,null,null,null,null,null,"","","","","","","","",""]
[null,"Inline",116,"C/O","Softgoods","Unisex",null,"TABI GRIP SOCKS QUARTER","タビ グリップ ソックス クウォーター","Grey Mix",2400,3,"1026560","S","23～25cm","195208035272",null,null,null,null,null,null,null,null,null,null,null,null,null,null,"","","","","","","","",""]
[null,"Inline",116,"CO","Softgoods","Unisex",null,"TABI GRIP SOCKS QUARTER","タビ グリップ ソックス クウォーター","Grey Mix",2400,3,"1026560","M","25～27cm","195208035265",null,null,null,null,null,null,null,null,null,null,null,null,null,null,"","","","","","","","",""]
[null,"Inline",116,"CO","Softgoods","Unisex",null,"TABI GRIP SOCKS QUARTER","タビ グリップ ソックス クウォーター","Grey Mix",2400,3,"1026560","L","27～29cm","195208035258",null,null,null,null,null,null,null,null,null,null,null,null,null,null,"","","","","","","","",""]
[null,"Inline",116,"C/O","Softgoods","Unisex",null,"TABI GRIP SOCKS QUARTER","タビ グリップ ソックス クウォーター","Black Mix",2400,3,"1026561","S","23～25cm","195208035302",null,null,null,null,null,null,null,null,null,null,null,null,null,null,"","","","","","","","",""]
[null,"Inline",116,"CO","Softgoods","Unisex",null,"TABI GRIP SOCKS QUARTER","タビ グリップ ソックス クウォーター","Black Mix",2400,3,"1026561","M","25～27cm","195208035296",null,null,null,null,null,null,null,null,null,null,null,null,null,null,"","","","","","","","",""]
[null,"Inline",116,"CO","Softgoods","Unisex",null,"TABI GRIP SOCKS QUARTER","タビ グリップ ソックス クウォーター","Black Mix",2400,3,"1026561","L","27～29cm","195208035289",null,null,null,null,null,null,null,null,null,null,null,null,null,null,"","","","","","","","",""]
[null,"Inline",116,"C/O","Softgoods","Unisex",null,"TABI GRIP SOCKS LO-CUT","タビ グリップ ソックス ローカット","Safari",2100,3,"1027049","S","23～25cm","195208114878",null,null,null,null,null,null,null,null,null,null,null,null,null,null,"","","","","","","","",""]
[null,"Inline",116,"CO","Softgoods","Unisex",null,"TABI GRIP SOCKS LO-CUT","タビ グリップ ソックス ローカット","Safari",2100,3,"1027049","M","25～27cm","195208114861",null,null,null,null,null,null,null,null,null,null,null,null,null,null,"","","","","","","","",""]
[null,"Inline",116,"CO","Softgoods","Unisex",null,"TABI GRIP SOCKS LO-CUT","タビ グリップ ソックス ローカット","Safari",2100,3,"1027049","L","27～29cm","195208114854",null,null,null,null,null,null,null,null,null,null,null,null,null,null,"","","","","","","","",""]
[null,"Inline",116,"C/O","Softgoods","Unisex",null,"TABI GRIP SOCKS LO-CUT","タビ グリップ ソックス ローカット","Grey Mix",2100,3,"1026563","S","23～25cm","195208035364",null,null,null,null,null,null,null,null,null,null,null,null,null,null,"","","","","","","","",""]
[null,"Inline",116,"CO","Softgoods","Unisex",null,"TABI GRIP SOCKS LO-CUT","タビ グリップ ソックス ローカット","Grey Mix",2100,3,"1026563","M","25～27cm","195208035357",null,null,null,null,null,null,null,null,null,null,null,null,null,null,"","","","","","","","",""]
[null,"Inline",116,"CO","Softgoods","Unisex",null,"TABI GRIP SOCKS LO-CUT","タビ グリップ ソックス ローカット","Grey Mix",2100,3,"1026563","L","27～29cm","195208035340",null,null,null,null,null,null,null,null,null,null,null,null,null,null,"","","","","","","","",""]
[null,"Inline",116,"C/O","Softgoods","Unisex",null,"TABI GRIP SOCKS LO-CUT","タビ グリップ ソックス ローカット","Black Mix",2100,3,"1026564","S","23～25cm","195208035371",null,null,null,null,null,null,null,null,null,null,null,null,null,null,"","","","","","","","",""]
[null,"Inline",116,"CO","Softgoods","Unisex",null,"TABI GRIP SOCKS LO-CUT","タビ グリップ ソックス ローカット","Black Mix",2100,3,"1026564","M","25～27cm","195208035388",null,null,null,null,null,null,null,null,null,null,null,null,null,null,"","","","","","","","",""]
[null,"Inline",116,"CO","Softgoods","Unisex",null,"TABI GRIP SOCKS LO-CUT","タビ グリップ ソックス ローカット","Black Mix",2100,3,"1026564","L","27～29cm","195208035395",null,null,null,null,null,null,null,null,null,null,null,null,null,null,"","","","","","","","",""]
[null,"Inline",117,"NEW","Softgoods","Unisex",null,"NEWPORT TABI SLOGAN SOCKS","ニューポート タビ スローガン ソックス","White/Magnet",1600,3,"TBDS23088","S","23～25cm","-",null,null,null,null,null,null,null,null,null,null,null,null,null,null,"","","","","","","","",""]
[null,"Inline",117,"NEW","Softgoods","Unisex",null,"NEWPORT TABI SLOGAN SOCKS","ニューポート タビ スローガン ソックス","White/Magnet",1600,3,"TBDS23088","M","25～27cm","-",null,null,null,null,null,null,null,null,null,null,null,null,null,null,"","","","","","","","",""]
[null,"Inline",117,"NEW","Softgoods","Unisex",null,"NEWPORT TABI SLOGAN SOCKS","ニューポート タビ スローガン ソックス","White/Magnet",1600,3,"TBDS23088","L","27～29cm","-",null,null,null,null,null,null,null,null,null,null,null,null,null,null,"","","","","","","","",""]
[null,"Inline",117,"NEW","Softgoods","Unisex",null,"NEWPORT TABI SLOGAN SOCKS","ニューポート タビ スローガン ソックス","Timberwolf/Canteen",1600,3,"TBDS23089","S","23～25cm","-",null,null,null,null,null,null,null,null,null,null,null,null,null,null,"","","","","","","","",""]
[null,"Inline",117,"NEW","Softgoods","Unisex",null,"NEWPORT TABI SLOGAN SOCKS","ニューポート タビ スローガン ソックス","Timberwolf/Canteen",1600,3,"TBDS23089","M","25～27cm","-",null,null,null,null,null,null,null,null,null,null,null,null,null,null,"","","","","","","","",""]
[null,"Inline",117,"NEW","Softgoods","Unisex",null,"NEWPORT TABI SLOGAN SOCKS","ニューポート タビ スローガン ソックス","Timberwolf/Canteen",1600,3,"TBDS23089","L","27～29cm","-",null,null,null,null,null,null,null,null,null,null,null,null,null,null,"","","","","","","","",""]
[null,"Inline",117,"NEW","Softgoods","Unisex",null,"NEWPORT TABI SLOGAN SOCKS","ニューポート タビ スローガン ソックス","Black/Magnet",1600,3,"TBDS23090","S","23～25cm","-",null,null,null,null,null,null,null,null,null,null,null,null,null,null,"","","","","","","","",""]
[null,"Inline",117,"NEW","Softgoods","Unisex",null,"NEWPORT TABI SLOGAN SOCKS","ニューポート タビ スローガン ソックス","Black/Magnet",1600,3,"TBDS23090","M","25～27cm","-",null,null,null,null,null,null,null,null,null,null,null,null,null,null,"","","","","","","","",""]
[null,"Inline",117,"NEW","Softgoods","Unisex",null,"NEWPORT TABI SLOGAN SOCKS","ニューポート タビ スローガン ソックス","Black/Magnet",1600,3,"TBDS23090","L","27～29cm","-",null,null,null,null,null,null,null,null,null,null,null,null,null,null,"","","","","","","","",""]
[null,"Inline",118,"NEW","Softgoods","Unisex",null,"NEWPORT-ish LOW CUT SOCKS","ニューポートィシュ ロ-カット ソックス","White/Birch",2300,3,"TBDS23082","S","23～25cm","-",null,null,null,null,null,null,null,null,null,null,null,null,null,null,"","","","","","","","",""]
[null,"Inline",118,"NEW","Softgoods","Unisex",null,"NEWPORT-ish LOW CUT SOCKS","ニューポートィシュ ロ-カット ソックス","White/Birch",2300,3,"TBDS23082","M","25～27cm","-",null,null,null,null,null,null,null,null,null,null,null,null,null,null,"","","","","","","","",""]
[null,"Inline",118,"NEW","Softgoods","Unisex",null,"NEWPORT-ish LOW CUT SOCKS","ニューポートィシュ ロ-カット ソックス","White/Birch",2300,3,"TBDS23082","L","27～29cm","-",null,null,null,null,null,null,null,null,null,null,null,null,null,null,"","","","","","","","",""]
[null,"Inline",118,"NEW","Softgoods","Unisex",null,"NEWPORT-ish LOW CUT SOCKS","ニューポートィシュ ロ-カット ソックス","White/Bison",2300,3,"TBDS23083","S","23～25cm","-",null,null,null,null,null,null,null,null,null,null,null,null,null,null,"","","","","","","","",""]
[null,"Inline",118,"NEW","Softgoods","Unisex",null,"NEWPORT-ish LOW CUT SOCKS","ニューポートィシュ ロ-カット ソックス","White/Bison",2300,3,"TBDS23083","M","25～27cm","-",null,null,null,null,null,null,null,null,null,null,null,null,null,null,"","","","","","","","",""]
[null,"Inline",118,"NEW","Softgoods","Unisex",null,"NEWPORT-ish LOW CUT SOCKS","ニューポートィシュ ロ-カット ソックス","White/Bison",2300,3,"TBDS23083","L","27～29cm","-",null,null,null,null,null,null,null,null,null,null,null,null,null,null,"","","","","","","","",""]
[null,"Inline",118,"NEW","Softgoods","Unisex",null,"NEWPORT-ish LOW CUT SOCKS","ニューポートィシュ ロ-カット ソックス","Multi/Red",2300,3,"TBDS23084","S","23～25cm","-",null,null,null,null,null,null,null,null,null,null,null,null,null,null,"","","","","","","","",""]
[null,"Inline",118,"NEW","Softgoods","Unisex",null,"NEWPORT-ish LOW CUT SOCKS","ニューポートィシュ ロ-カット ソックス","Multi/Red",2300,3,"TBDS23084","M","25～27cm","-",null,null,null,null,null,null,null,null,null,null,null,null,null,null,"","","","","","","","",""]
[null,"Inline",118,"NEW","Softgoods","Unisex",null,"NEWPORT-ish LOW CUT SOCKS","ニューポートィシュ ロ-カット ソックス","Multi/Red",2300,3,"TBDS23084","L","27～29cm","-",null,null,null,null,null,null,null,null,null,null,null,null,null,null,"","","","","","","","",""]
[null,"Inline",118,"NEW","Softgoods","Unisex",null,"NEWPORT-ish LOW CUT SOCKS","ニューポートィシュ ロ-カット ソックス","Multi/Grey",2300,3,"TBDS23085","S","23～25cm","-",null,null,null,null,null,null,null,null,null,null,null,null,null,null,"","","","","","","","",""]
[null,"Inline",118,"NEW","Softgoods","Unisex",null,"NEWPORT-ish LOW CUT SOCKS","ニューポートィシュ ロ-カット ソックス","Multi/Grey",2300,3,"TBDS23085","M","25～27cm","-",null,null,null,null,null,null,null,null,null,null,null,null,null,null,"","","","","","","","",""]
[null,"Inline",118,"NEW","Softgoods","Unisex",null,"NEWPORT-ish LOW CUT SOCKS","ニューポートィシュ ロ-カット ソックス","Multi/Grey",2300,3,"TBDS23085","L","27～29cm","-",null,null,null,null,null,null,null,null,null,null,null,null,null,null,"","","","","","","","",""]
[null,"Inline",118,"NEW","Softgoods","Unisex",null,"NEWPORT-ish LOW CUT SOCKS","ニューポートィシュ ロ-カット ソックス","Olive",2300,3,"TBDS23086","S","23～25cm","-",null,null,null,null,null,null,null,null,null,null,null,null,null,null,"","","","","","","","",""]
[null,"Inline",118,"NEW","Softgoods","Unisex",null,"NEWPORT-ish LOW CUT SOCKS","ニューポートィシュ ロ-カット ソックス","Olive",2300,3,"TBDS23086","M","25～27cm","-",null,null,null,null,null,null,null,null,null,null,null,null,null,null,"","","","","","","","",""]
[null,"Inline",118,"NEW","Softgoods","Unisex",null,"NEWPORT-ish LOW CUT SOCKS","ニューポートィシュ ロ-カット ソックス","Olive",2300,3,"TBDS23086","L","27～29cm","-",null,null,null,null,null,null,null,null,null,null,null,null,null,null,"","","","","","","","",""]
[null,"Inline",118,"NEW","Softgoods","Unisex",null,"NEWPORT-ish LOW CUT SOCKS","ニューポートィシュ ロ-カット ソックス","Black/Grey",2300,3,"TBDS23087","S","23～25cm","-",null,null,null,null,null,null,null,null,null,null,null,null,null,null,"","","","","","","","",""]
[null,"Inline",118,"NEW","Softgoods","Unisex",null,"NEWPORT-ish LOW CUT SOCKS","ニューポートィシュ ロ-カット ソックス","Black/Grey",2300,3,"TBDS23087","M","25～27cm","-",null,null,null,null,null,null,null,null,null,null,null,null,null,null,"","","","","","","","",""]
[null,"Inline",118,"NEW","Softgoods","Unisex",null,"NEWPORT-ish LOW CUT SOCKS","ニューポートィシュ ロ-カット ソックス","Black/Grey",2300,3,"TBDS23087","L","27～29cm","-",null,null,null,null,null,null,null,null,null,null,null,null,null,null,"","","","","","","","",""]
[null,"Inline",119,"C/O","Softgoods","Unisex",null,"WA-SHI SOCKS QUARTER","ワシ ソックス クウォーター","White",2400,3,"1025735","S","23～25cm","191190859469",null,null,null,null,null,null,null,null,null,null,null,null,null,null,"","","","","","","","",""]
[null,"Inline",119,"CO","Softgoods","Unisex",null,"WA-SHI SOCKS QUARTER","ワシ ソックス クウォーター","White",2400,3,"1025735","M","25～27cm","191190859452",null,null,null,null,null,null,null,null,null,null,null,null,null,null,"","","","","","","","",""]
[null,"Inline",119,"CO","Softgoods","Unisex",null,"WA-SHI SOCKS QUARTER","ワシ ソックス クウォーター","White",2400,3,"1025735","L","27～29cm","191190859445",null,null,null,null,null,null,null,null,null,null,null,null,null,null,"","","","","","","","",""]
[null,"Inline",119,"C/O","Softgoods","Unisex",null,"WA-SHI SOCKS QUARTER","ワシ ソックス クウォーター","New Black",2400,3,"1025739","S","23～25cm","191190859582",null,null,null,null,null,null,null,null,null,null,null,null,null,null,"","","","","","","","",""]
[null,"Inline",119,"CO","Softgoods","Unisex",null,"WA-SHI SOCKS QUARTER","ワシ ソックス クウォーター","New Black",2400,3,"1025739","M","25～27cm","191190859575",null,null,null,null,null,null,null,null,null,null,null,null,null,null,"","","","","","","","",""]
[null,"Inline",119,"CO","Softgoods","Unisex",null,"WA-SHI SOCKS QUARTER","ワシ ソックス クウォーター","New Black",2400,3,"1025739","L","27～29cm","191190859568",null,null,null,null,null,null,null,null,null,null,null,null,null,null,"","","","","","","","",""]
[null,"Inline",119,"C/O","Softgoods","Unisex",null,"WA-SHI SOCKS QUARTER","ワシ ソックス クウォーター","Brindle/Coffee Bean",2400,3,"1025919","S","23～25cm","191190919842",null,null,null,null,null,null,null,null,null,null,null,null,null,null,"","","","","","","","",""]
[null,"Inline",119,"CO","Softgoods","Unisex",null,"WA-SHI SOCKS QUARTER","ワシ ソックス クウォーター","Brindle/Coffee Bean",2400,3,"1025919","M","25～27cm","191190919835",null,null,null,null,null,null,null,null,null,null,null,null,null,null,"","","","","","","","",""]
[null,"Inline",119,"CO","Softgoods","Unisex",null,"WA-SHI SOCKS QUARTER","ワシ ソックス クウォーター","Brindle/Coffee Bean",2400,3,"1025919","L","27～29cm","191190919828",null,null,null,null,null,null,null,null,null,null,null,null,null,null,"","","","","","","","",""]
[null,"Inline",119,"NEW","Softgoods","Unisex",null,"WA-SHI SOCKS QUARTER","ワシ ソックス クウォーター","Beige Heather Mix",2400,3,"TBDS23001","S","23～25cm","-",null,null,null,null,null,null,null,null,null,null,null,null,null,null,"","","","","","","","",""]
[null,"Inline",119,"NEW","Softgoods","Unisex",null,"WA-SHI SOCKS QUARTER","ワシ ソックス クウォーター","Beige Heather Mix",2400,3,"TBDS23001","M","25～27cm","-",null,null,null,null,null,null,null,null,null,null,null,null,null,null,"","","","","","","","",""]
[null,"Inline",119,"NEW","Softgoods","Unisex",null,"WA-SHI SOCKS QUARTER","ワシ ソックス クウォーター","Beige Heather Mix",2400,3,"TBDS23001","L","27～29cm","-",null,null,null,null,null,null,null,null,null,null,null,null,null,null,"","","","","","","","",""]
[null,"Inline",119,"NEW","Softgoods","Unisex",null,"WA-SHI SOCKS QUARTER","ワシ ソックス クウォーター","Grey Heather Mix",2400,3,"TBDS23002","S","23～25cm","-",null,null,null,null,null,null,null,null,null,null,null,null,null,null,"","","","","","","","",""]
[null,"Inline",119,"NEW","Softgoods","Unisex",null,"WA-SHI SOCKS QUARTER","ワシ ソックス クウォーター","Grey Heather Mix",2400,3,"TBDS23002","M","25～27cm","-",null,null,null,null,null,null,null,null,null,null,null,null,null,null,"","","","","","","","",""]
[null,"Inline",119,"NEW","Softgoods","Unisex",null,"WA-SHI SOCKS QUARTER","ワシ ソックス クウォーター","Grey Heather Mix",2400,3,"TBDS23002","L","27～29cm","-",null,null,null,null,null,null,null,null,null,null,null,null,null,null,"","","","","","","","",""]
[null,"Inline",119,"NEW","Softgoods","Unisex",null,"WA-SHI SOCKS QUARTER","ワシ ソックス クウォーター","Blue/Brown",2400,3,"TBDS23003","S","23～25cm","-",null,null,null,null,null,null,null,null,null,null,null,null,null,null,{"$f":"IF(SUMIF($Q$17:$AD$17,AE$17,$Q78:$AD78)=0,\"\",SUMIF($Q$17:$AD$17,AE$17,$Q78:$AD78))","v":""},"",{"$f":"IF(SUM(AE78:AF78)=0,\"\",SUM(AE78:AF78))","v":""},{"$f":"IF(ISERROR($K78*AE78),\"\",$K78*AE78)","v":""},{"$f":"IF(ISERROR($K78*AF78),\"\",$K78*AF78)","v":""},{"$f":"IF(SUM(AH78:AI78)=0,\"\",SUM(AH78:AI78))","v":""},{"$f":"IF(ISERROR($K78*AE78*$C$9),\"\",$K78*AE78*$C$9)","v":""},{"$f":"IF(ISERROR($K78*AF78*$C$9),\"\",$K78*AF78*$C$9)","v":""},{"$f":"IF(SUM(AK78:AL78)=0,\"\",SUM(AK78:AL78))","v":""}]
[null,"Inline",119,"NEW","Softgoods","Unisex",null,"WA-SHI SOCKS QUARTER","ワシ ソックス クウォーター","Blue/Brown",2400,3,"TBDS23003","M","25～27cm","-",null,null,null,null,null,null,null,null,null,null,null,null,null,null,"","","","","","","","",""]
[null,"Inline",119,"NEW","Softgoods","Unisex",null,"WA-SHI SOCKS QUARTER","ワシ ソックス クウォーター","Blue/Brown",2400,3,"TBDS23003","L","27～29cm","-",null,null,null,null,null,null,null,null,null,null,null,null,null,null,"","","","","","","","",""]
[null,"Inline",119,"NEW","Softgoods","Unisex",null,"WA-SHI SOCKS QUARTER","ワシ ソックス クウォーター","Green/Beige",2400,3,"TBDS23004","S","23～25cm","-",null,null,null,null,null,null,null,null,null,null,null,null,null,null,"","","","","","","","",""]
[null,"Inline",119,"NEW","Softgoods","Unisex",null,"WA-SHI SOCKS QUARTER","ワシ ソックス クウォーター","Green/Beige",2400,3,"TBDS23004","M","25～27cm","-",null,null,null,null,null,null,null,null,null,null,null,null,null,null,"","","","","","","","",""]
[null,"Inline",119,"NEW","Softgoods","Unisex",null,"WA-SHI SOCKS QUARTER","ワシ ソックス クウォーター","Green/Beige",2400,3,"TBDS23004","L","27～29cm","-",null,null,null,null,null,null,null,null,null,null,null,null,null,null,"","","","","","","","",""]
[null,"Inline",120,"C/O","Softgoods","Unisex",null,"WA-SHI SOCKS LO-CUT","ワシ ソックス ローカット","White",2100,3,"1025740","S","23～25cm","191190859599",null,null,null,null,null,null,null,null,null,null,null,null,null,null,"","","","","","","","",""]
[null,"Inline",120,"CO","Softgoods","Unisex",null,"WA-SHI SOCKS LO-CUT","ワシ ソックス ローカット","White",2100,3,"1025740","M","25～27cm","191190859605",null,null,null,null,null,null,null,null,null,null,null,null,null,null,"","","","","","","","",""]
[null,"Inline",120,"CO","Softgoods","Unisex",null,"WA-SHI SOCKS LO-CUT","ワシ ソックス ローカット","White",2100,3,"1025740","L","27～29cm","191190859612",null,null,null,null,null,null,null,null,null,null,null,null,null,null,"","","","","","","","",""]
[null,"Inline",120,"C/O","Softgoods","Unisex",null,"WA-SHI SOCKS LO-CUT","ワシ ソックス ローカット","New Black",2100,3,"1025744","S","23～25cm","191190859735",null,null,null,null,null,null,null,null,null,null,null,null,null,null,"","","","","","","","",""]
[null,"Inline",120,"CO","Softgoods","Unisex",null,"WA-SHI SOCKS LO-CUT","ワシ ソックス ローカット","New Black",2100,3,"1025744","M","25～27cm","191190859728",null,null,null,null,null,null,null,null,null,null,null,null,null,null,"","","","","","","","",""]
[null,"Inline",120,"CO","Softgoods","Unisex",null,"WA-SHI SOCKS LO-CUT","ワシ ソックス ローカット","New Black",2100,3,"1025744","L","27～29cm","191190859711",null,null,null,null,null,null,null,null,null,null,null,null,null,null,"","","","","","","","",""]
[null,"Inline",120,"C/O","Softgoods","Unisex",null,"WA-SHI SOCKS LO-CUT","ワシ ソックス ローカット","Brindle/Coffeebean",2100,3,"1025921","S","23～25cm","191190919903",null,null,null,null,null,null,null,null,null,null,null,null,null,null,"","","","","","","","",""]
[null,"Inline",120,"CO","Softgoods","Unisex",null,"WA-SHI SOCKS LO-CUT","ワシ ソックス ローカット","Brindle/Coffeebean",2100,3,"1025921","M","25～27cm","191190919897",null,null,null,null,null,null,null,null,null,null,null,null,null,null,"","","","","","","","",""]
[null,"Inline",120,"CO","Softgoods","Unisex",null,"WA-SHI SOCKS LO-CUT","ワシ ソックス ローカット","Brindle/Coffeebean",2100,3,"1025921","L","27～29cm","191190919880",null,null,null,null,null,null,null,null,null,null,null,null,null,null,"","","","","","","","",""]
[null,"Inline",120,"NEW","Softgoods","Unisex",null,"WA-SHI SOCKS LO-CUT","ワシ ソックス ローカット","Beige Heather Mix",2100,3,"TBDS23005","S","23～25cm","-",null,null,null,null,null,null,null,null,null,null,null,null,null,null,"","","","","","","","",""]
[null,"Inline",120,"NEW","Softgoods","Unisex",null,"WA-SHI SOCKS LO-CUT","ワシ ソックス ローカット","Beige Heather Mix",2100,3,"TBDS23005","M","25～27cm","-",null,null,null,null,null,null,null,null,null,null,null,null,null,null,"","","","","","","","",""]
[null,"Inline",120,"NEW","Softgoods","Unisex",null,"WA-SHI SOCKS LO-CUT","ワシ ソックス ローカット","Beige Heather Mix",2100,3,"TBDS23005","L","27～29cm","-",null,null,null,null,null,null,null,null,null,null,null,null,null,null,"","","","","","","","",""]
[null,"Inline",120,"NEW","Softgoods","Unisex",null,"WA-SHI SOCKS LO-CUT","ワシ ソックス ローカット","Grey Heather Mix",2100,3,"TBDS23006","S","23～25cm","-",null,null,null,null,null,null,null,null,null,null,null,null,null,null,"","","","","","","","",""]
[null,"Inline",120,"NEW","Softgoods","Unisex",null,"WA-SHI SOCKS LO-CUT","ワシ ソックス ローカット","Grey Heather Mix",2100,3,"TBDS23006","M","25～27cm","-",null,null,null,null,null,null,null,null,null,null,null,null,null,null,"","","","","","","","",""]
[null,"Inline",120,"NEW","Softgoods","Unisex",null,"WA-SHI SOCKS LO-CUT","ワシ ソックス ローカット","Grey Heather Mix",2100,3,"TBDS23006","L","27～29cm","-",null,null,null,null,null,null,null,null,null,null,null,null,null,null,"","","","","","","","",""]
[null,"Inline",120,"NEW","Softgoods","Unisex",null,"WA-SHI SOCKS LO-CUT","ワシ ソックス ローカット","Blue/Brown",2100,3,"TBDS23007","S","23～25cm","-",null,null,null,null,null,null,null,null,null,null,null,null,null,null,"","","","","","","","",""]
[null,"Inline",120,"NEW","Softgoods","Unisex",null,"WA-SHI SOCKS LO-CUT","ワシ ソックス ローカット","Blue/Brown",2100,3,"TBDS23007","M","25～27cm","-",null,null,null,null,null,null,null,null,null,null,null,null,null,null,"","","","","","","","",""]
[null,"Inline",120,"NEW","Softgoods","Unisex",null,"WA-SHI SOCKS LO-CUT","ワシ ソックス ローカット","Blue/Brown",2100,3,"TBDS23007","L","27～29cm","-",null,null,null,null,null,null,null,null,null,null,null,null,null,null,"","","","","","","","",""]
[null,"Inline",120,"NEW","Softgoods","Unisex",null,"WA-SHI SOCKS LO-CUT","ワシ ソックス ローカット","Green/Beige",2100,3,"TBDS23008","S","23～25cm","-",null,null,null,null,null,null,null,null,null,null,null,null,null,null,"","","","","","","","",""]
[null,"Inline",120,"NEW","Softgoods","Unisex",null,"WA-SHI SOCKS LO-CUT","ワシ ソックス ローカット","Green/Beige",2100,3,"TBDS23008","M","25～27cm","-",null,null,null,null,null,null,null,null,null,null,null,null,null,null,"","","","","","","","",""]
[null,"Inline",120,"NEW","Softgoods","Unisex",null,"WA-SHI SOCKS LO-CUT","ワシ ソックス ローカット","Green/Beige",2100,3,"TBDS23008","L","27～29cm","-",null,null,null,null,null,null,null,null,null,null,null,null,null,null,"","","","","","","","",""]
[null,"Inline",121,"NEW","Softgoods","Men",null,"OC/RP POCKET BIG TEE ","オーシーアールピー ポケット ビック ティー","White/Black",5700,3,"TBDS23091","S","S","-",null,null,null,null,null,null,null,null,null,null,null,null,null,null,"","","","","","","","",""]
[null,"Inline",121,"NEW","Softgoods","Men",null,"OC/RP POCKET BIG TEE ","オーシーアールピー ポケット ビック ティー","White/Black",5700,3,"TBDS23091","M","M","-",null,null,null,null,null,null,null,null,null,null,null,null,null,null,"","","","","","","","",""]
[null,"Inline",121,"NEW","Softgoods","Men",null,"OC/RP POCKET BIG TEE ","オーシーアールピー ポケット ビック ティー","White/Black",5700,3,"TBDS23091","L","L","-",null,null,null,null,null,null,null,null,null,null,null,null,null,null,"","","","","","","","",""]
[null,"Inline",121,"NEW","Softgoods","Men",null,"OC/RP POCKET BIG TEE ","オーシーアールピー ポケット ビック ティー","White/Black",5700,3,"TBDS23091","XL","XL","-",null,null,null,null,null,null,null,null,null,null,null,null,null,null,"","","","","","","","",""]
[null,"Inline",121,"NEW","Softgoods","Men",null,"OC/RP POCKET BIG TEE","オーシーアールピー ポケット ビック ティー","Croissant/Thai Curry",5700,3,"TBDS23092","S","S","-",null,null,null,null,null,null,null,null,null,null,null,null,null,null,"","","","","","","","",""]
[null,"Inline",121,"NEW","Softgoods","Men",null,"OC/RP POCKET BIG TEE","オーシーアールピー ポケット ビック ティー","Croissant/Thai Curry",5700,3,"TBDS23092","M","M","-",null,null,null,null,null,null,null,null,null,null,null,null,null,null,"","","","","","","","",""]
[null,"Inline",121,"NEW","Softgoods","Men",null,"OC/RP POCKET BIG TEE","オーシーアールピー ポケット ビック ティー","Croissant/Thai Curry",5700,3,"TBDS23092","L","L","-",null,null,null,null,null,null,null,null,null,null,null,null,null,null,"","","","","","","","",""]
[null,"Inline",121,"NEW","Softgoods","Men",null,"OC/RP POCKET BIG TEE","オーシーアールピー ポケット ビック ティー","Croissant/Thai Curry",5700,3,"TBDS23092","XL","XL","-",null,null,null,null,null,null,null,null,null,null,null,null,null,null,"","","","","","","","",""]
[null,"Inline",121,"NEW","Softgoods","Men",null,"OC/RP POCKET BIG TEE","オーシーアールピー ポケット ビック ティー","Fjord Blue/Black",5700,3,"TBDS23093","S","S","-",null,null,null,null,null,null,null,null,null,null,null,null,null,null,"","","","","","","","",""]
[null,"Inline",121,"NEW","Softgoods","Men",null,"OC/RP POCKET BIG TEE","オーシーアールピー ポケット ビック ティー","Fjord Blue/Black",5700,3,"TBDS23093","M","M","-",null,null,null,null,null,null,null,null,null,null,null,null,null,null,"","","","","","","","",""]
[null,"Inline",121,"NEW","Softgoods","Men",null,"OC/RP POCKET BIG TEE","オーシーアールピー ポケット ビック ティー","Fjord Blue/Black",5700,3,"TBDS23093","L","L","-",null,null,null,null,null,null,null,null,null,null,null,null,null,null,"","","","","","","","",""]
[null,"Inline",121,"NEW","Softgoods","Men",null,"OC/RP POCKET BIG TEE","オーシーアールピー ポケット ビック ティー","Fjord Blue/Black",5700,3,"TBDS23093","XL","XL","-",null,null,null,null,null,null,null,null,null,null,null,null,null,null,"","","","","","","","",""]
[null,"Inline",121,"NEW","Softgoods","Men",null,"OC/RP POCKET BIG TEE","オーシーアールピー ポケット ビック ティー","Black/Silver Birch",5700,3,"TBDS23094","S","S","-",null,null,null,null,null,null,null,null,null,null,null,null,null,null,"","","","","","","","",""]
[null,"Inline",121,"NEW","Softgoods","Men",null,"OC/RP POCKET BIG TEE","オーシーアールピー ポケット ビック ティー","Black/Silver Birch",5700,3,"TBDS23094","M","M","-",null,null,null,null,null,null,null,null,null,null,null,null,null,null,"","","","","","","","",""]
[null,"Inline",121,"NEW","Softgoods","Men",null,"OC/RP POCKET BIG TEE","オーシーアールピー ポケット ビック ティー","Black/Silver Birch",5700,3,"TBDS23094","L","L","-",null,null,null,null,null,null,null,null,null,null,null,null,null,null,"","","","","","","","",""]
[null,"Inline",121,"NEW","Softgoods","Men",null,"OC/RP POCKET BIG TEE","オーシーアールピー ポケット ビック ティー","Black/Silver Birch",5700,3,"TBDS23094","XL","XL","-",null,null,null,null,null,null,null,null,null,null,null,null,null,null,"","","","","","","","",""]
[null,"Inline",121,"NEW","Softgoods","Men",null,"OC/RP C&B LOGO TEE","オーシーアールピー シーアンドビー ロゴ ティー","White/Black",5200,3,"TBDS23010","S","S","-",null,null,null,null,null,null,null,null,null,null,null,null,null,null,"","","","","","","","",""]
[null,"Inline",121,"NEW","Softgoods","Men",null,"OC/RP C&B LOGO TEE","オーシーアールピー シーアンドビー ロゴ ティー","White/Black",5200,3,"TBDS23010","M","M","-",null,null,null,null,null,null,null,null,null,null,null,null,null,null,"","","","","","","","",""]
[null,"Inline",121,"NEW","Softgoods","Men",null,"OC/RP C&B LOGO TEE","オーシーアールピー シーアンドビー ロゴ ティー","White/Black",5200,3,"TBDS23010","L","L","-",null,null,null,null,null,null,null,null,null,null,null,null,null,null,"","","","","","","","",""]
[null,"Inline",121,"NEW","Softgoods","Men",null,"OC/RP C&B LOGO TEE","オーシーアールピー シーアンドビー ロゴ ティー","White/Black",5200,3,"TBDS23010","XL","XL","-",null,null,null,null,null,null,null,null,null,null,null,null,null,null,"","","","","","","","",""]
[null,"Inline",121,"NEW","Softgoods","Men",null,"OC/RP C&B LOGO TEE   ","オーシーアールピー シーアンドビー ロゴ ティー","Croissant/Thai Curry",5200,3,"TBDS23011","S","S","-",null,null,null,null,null,null,null,null,null,null,null,null,null,null,"","","","","","","","",""]
[null,"Inline",121,"NEW","Softgoods","Men",null,"OC/RP C&B LOGO TEE   ","オーシーアールピー シーアンドビー ロゴ ティー","Croissant/Thai Curry",5200,3,"TBDS23011","M","M","-",null,null,null,null,null,null,null,null,null,null,null,null,null,null,"","","","","","","","",""]
[null,"Inline",121,"NEW","Softgoods","Men",null,"OC/RP C&B LOGO TEE   ","オーシーアールピー シーアンドビー ロゴ ティー","Croissant/Thai Curry",5200,3,"TBDS23011","L","L","-",null,null,null,null,null,null,null,null,null,null,null,null,null,null,"","","","","","","","",""]
[null,"Inline",121,"NEW","Softgoods","Men",null,"OC/RP C&B LOGO TEE   ","オーシーアールピー シーアンドビー ロゴ ティー","Croissant/Thai Curry",5200,3,"TBDS23011","XL","XL","-",null,null,null,null,null,null,null,null,null,null,null,null,null,null,"","","","","","","","",""]
[null,"Inline",121,"NEW","Softgoods","Men",null,"OC/RP C&B LOGO TEE   ","オーシーアールピー シーアンドビー ロゴ ティー","Fjord Blue/Black",5200,3,"TBDS23012","S","S","-",null,null,null,null,null,null,null,null,null,null,null,null,null,null,"","","","","","","","",""]
[null,"Inline",121,"NEW","Softgoods","Men",null,"OC/RP C&B LOGO TEE   ","オーシーアールピー シーアンドビー ロゴ ティー","Fjord Blue/Black",5200,3,"TBDS23012","M","M","-",null,null,null,null,null,null,null,null,null,null,null,null,null,null,"","","","","","","","",""]
[null,"Inline",121,"NEW","Softgoods","Men",null,"OC/RP C&B LOGO TEE   ","オーシーアールピー シーアンドビー ロゴ ティー","Fjord Blue/Black",5200,3,"TBDS23012","L","L","-",null,null,null,null,null,null,null,null,null,null,null,null,null,null,"","","","","","","","",""]
[null,"Inline",121,"NEW","Softgoods","Men",null,"OC/RP C&B LOGO TEE   ","オーシーアールピー シーアンドビー ロゴ ティー","Fjord Blue/Black",5200,3,"TBDS23012","XL","XL","-",null,null,null,null,null,null,null,null,null,null,null,null,null,null,"","","","","","","","",""]
[null,"Inline",121,"NEW","Softgoods","Men",null,"OC/RP C&B LOGO TEE   ","オーシーアールピー シーアンドビー ロゴ ティー","Black/Silver Birch",5200,3,"TBDS23013","S","S","-",null,null,null,null,null,null,null,null,null,null,null,null,null,null,"","","","","","","","",""]
[null,"Inline",121,"NEW","Softgoods","Men",null,"OC/RP C&B LOGO TEE   ","オーシーアールピー シーアンドビー ロゴ ティー","Black/Silver Birch",5200,3,"TBDS23013","M","M","-",null,null,null,null,null,null,null,null,null,null,null,null,null,null,"","","","","","","","",""]
[null,"Inline",121,"NEW","Softgoods","Men",null,"OC/RP C&B LOGO TEE   ","オーシーアールピー シーアンドビー ロゴ ティー","Black/Silver Birch",5200,3,"TBDS23013","L","L","-",null,null,null,null,null,null,null,null,null,null,null,null,null,null,"","","","","","","","",""]
[null,"Inline",121,"NEW","Softgoods","Men",null,"OC/RP C&B LOGO TEE   ","オーシーアールピー シーアンドビー ロゴ ティー","Black/Silver Birch",5200,3,"TBDS23013","XL","XL","-",null,null,null,null,null,null,null,null,null,null,null,null,null,null,"","","","","","","","",""]
[null,"Inline",122,"NEW","Softgoods","Men",null,"OC/RP KEEN LOGO TEE NIGHT","オーシーアールピー キーン ロゴ　ティ- ナイト","White",5700,3,"TBDS23018","S","S","-",null,null,null,null,null,null,null,null,null,null,null,null,null,null,"","","","","","","","",""]
[null,"Inline",122,"NEW","Softgoods","Men",null,"OC/RP KEEN LOGO TEE NIGHT","オーシーアールピー キーン ロゴ　ティ- ナイト","White",5700,3,"TBDS23018","M","M","-",null,null,null,null,null,null,null,null,null,null,null,null,null,null,"","","","","","","","",""]
[null,"Inline",122,"NEW","Softgoods","Men",null,"OC/RP KEEN LOGO TEE NIGHT","オーシーアールピー キーン ロゴ　ティ- ナイト","White",5700,3,"TBDS23018","L","L","-",null,null,null,null,null,null,null,null,null,null,null,null,null,null,"","","","","","","","",""]
[null,"Inline",122,"NEW","Softgoods","Men",null,"OC/RP KEEN LOGO TEE NIGHT","オーシーアールピー キーン ロゴ　ティ- ナイト","White",5700,3,"TBDS23018","XL","XL","-",null,null,null,null,null,null,null,null,null,null,null,null,null,null,"","","","","","","","",""]
[null,"Inline",122,"NEW","Softgoods","Men",null,"OC/RP KEEN LOGO TEE NIGHT","オーシーアールピー キーン ロゴ　ティ- ナイト","Black",5700,3,"TBDS23019","S","S","-",null,null,null,null,null,null,null,null,null,null,null,null,null,null,"","","","","","","","",""]
[null,"Inline",122,"NEW","Softgoods","Men",null,"OC/RP KEEN LOGO TEE NIGHT","オーシーアールピー キーン ロゴ　ティ- ナイト","Black",5700,3,"TBDS23019","M","M","-",null,null,null,null,null,null,null,null,null,null,null,null,null,null,{"$f":"IF(SUMIF($Q$17:$AD$17,AE$17,$Q142:$AD142)=0,\"\",SUMIF($Q$17:$AD$17,AE$17,$Q142:$AD142))","v":""},"",{"$f":"IF(SUM(AE142:AF142)=0,\"\",SUM(AE142:AF142))","v":""},{"$f":"IF(ISERROR($K142*AE142),\"\",$K142*AE142)","v":""},{"$f":"IF(ISERROR($K142*AF142),\"\",$K142*AF142)","v":""},{"$f":"IF(SUM(AH142:AI142)=0,\"\",SUM(AH142:AI142))","v":""},{"$f":"IF(ISERROR($K142*AE142*$C$9),\"\",$K142*AE142*$C$9)","v":""},{"$f":"IF(ISERROR($K142*AF142*$C$9),\"\",$K142*AF142*$C$9)","v":""},{"$f":"IF(SUM(AK142:AL142)=0,\"\",SUM(AK142:AL142))","v":""}]
[null,"Inline",122,"NEW","Softgoods","Men",null,"OC/RP KEEN LOGO TEE NIGHT","オーシーアールピー キーン ロゴ　ティ- ナイト","Black",5700,3,"TBDS23019","L","L","-",null,null,null,null,null,null,null,null,null,null,null,null,null,null,"","","","","","","","",""]
[null,"Inline",122,"NEW","Softgoods","Men",null,"OC/RP KEEN LOGO TEE NIGHT","オーシーアールピー キーン ロゴ　ティ- ナイト","Black",5700,3,"TBDS23019","XL","XL","-",null,null,null,null,null,null,null,null,null,null,null,null,null,null,"","","","","","","","",""]
[null,"Inline",122,"NEW","Softgoods","Men",null,"OC/RP KEEN LOGO TEE DAY","オーシーアールピー キーン ロゴ　ティ- ディ","Croissant",5700,3,"TBDS23020","S","S","-",null,null,null,null,null,null,null,null,null,null,null,null,null,null,"","","","","","","","",""]
[null,"Inline",122,"NEW","Softgoods","Men",null,"OC/RP KEEN LOGO TEE DAY","オーシーアールピー キーン ロゴ　ティ- ディ","Croissant",5700,3,"TBDS23020","M","M","-",null,null,null,null,null,null,null,null,null,null,null,null,null,null,"","","","","","","","",""]
[null,"Inline",122,"NEW","Softgoods","Men",null,"OC/RP KEEN LOGO TEE DAY","オーシーアールピー キーン ロゴ　ティ- ディ","Croissant",5700,3,"TBDS23020","L","L","-",null,null,null,null,null,null,null,null,null,null,null,null,null,null,"","","","","","","","",""]
[null,"Inline",122,"NEW","Softgoods","Men",null,"OC/RP KEEN LOGO TEE DAY","オーシーアールピー キーン ロゴ　ティ- ディ","Croissant",5700,3,"TBDS23020","XL","XL","-",null,null,null,null,null,null,null,null,null,null,null,null,null,null,"","","","","","","","",""]
[null,"Inline",122,"NEW","Softgoods","Men",null,"OC/RP KEEN LOGO TEE DAY","オーシーアールピー キーン ロゴ　ティ- ディ","Fjord Blue",5700,3,"TBDS23021","S","S","-",null,null,null,null,null,null,null,null,null,null,null,null,null,null,"","","","","","","","",""]
[null,"Inline",122,"NEW","Softgoods","Men",null,"OC/RP KEEN LOGO TEE DAY","オーシーアールピー キーン ロゴ　ティ- ディ","Fjord Blue",5700,3,"TBDS23021","M","M","-",null,null,null,null,null,null,null,null,null,null,null,null,null,null,"","","","","","","","",""]
[null,"Inline",122,"NEW","Softgoods","Men",null,"OC/RP KEEN LOGO TEE DAY","オーシーアールピー キーン ロゴ　ティ- ディ","Fjord Blue",5700,3,"TBDS23021","L","L","-",null,null,null,null,null,null,null,null,null,null,null,null,null,null,"","","","","","","","",""]
[null,"Inline",122,"NEW","Softgoods","Men",null,"OC/RP KEEN LOGO TEE DAY","オーシーアールピー キーン ロゴ　ティ- ディ","Fjord Blue",5700,3,"TBDS23021","XL","XL","-",null,null,null,null,null,null,null,null,null,null,null,null,null,null,"","","","","","","","",""]
[null,"Inline",123,"NEW","Softgoods","Men",null,"HARVEST TECH TEE C&B LOGO","ハーベスト テック ティ シーアンドビー ロゴ","White/Sea Moss",5500,3,"TBDS23014","S","S","-",null,null,null,null,null,null,null,null,null,null,null,null,null,null,"","","","","","","","",""]
[null,"Inline",123,"NEW","Softgoods","Men",null,"HARVEST TECH TEE C&B LOGO","ハーベスト テック ティ シーアンドビー ロゴ","White/Sea Moss",5500,3,"TBDS23014","M","M","-",null,null,null,null,null,null,null,null,null,null,null,null,null,null,"","","","","","","","",""]
[null,"Inline",123,"NEW","Softgoods","Men",null,"HARVEST TECH TEE C&B LOGO","ハーベスト テック ティ シーアンドビー ロゴ","White/Sea Moss",5500,3,"TBDS23014","L","L","-",null,null,null,null,null,null,null,null,null,null,null,null,null,null,"","","","","","","","",""]
[null,"Inline",123,"NEW","Softgoods","Men",null,"HARVEST TECH TEE C&B LOGO","ハーベスト テック ティ シーアンドビー ロゴ","White/Sea Moss",5500,3,"TBDS23014","XL","XL","-",null,null,null,null,null,null,null,null,null,null,null,null,null,null,"","","","","","","","",""]
[null,"Inline",123,"NEW","Softgoods","Men",null,"HARVEST TECH TEE C&B LOGO","ハーベスト テック ティ シーアンドビー ロゴ","Timberwolf/Olive",5500,3,"TBDS23015","S","S","-",null,null,null,null,null,null,null,null,null,null,null,null,null,null,"","","","","","","","",""]
[null,"Inline",123,"NEW","Softgoods","Men",null,"HARVEST TECH TEE C&B LOGO","ハーベスト テック ティ シーアンドビー ロゴ","Timberwolf/Olive",5500,3,"TBDS23015","M","M","-",null,null,null,null,null,null,null,null,null,null,null,null,null,null,"","","","","","","","",""]
[null,"Inline",123,"NEW","Softgoods","Men",null,"HARVEST TECH TEE C&B LOGO","ハーベスト テック ティ シーアンドビー ロゴ","Timberwolf/Olive",5500,3,"TBDS23015","L","L","-",null,null,null,null,null,null,null,null,null,null,null,null,null,null,"","","","","","","","",""]
[null,"Inline",123,"NEW","Softgoods","Men",null,"HARVEST TECH TEE C&B LOGO","ハーベスト テック ティ シーアンドビー ロゴ","Timberwolf/Olive",5500,3,"TBDS23015","XL","XL","-",null,null,null,null,null,null,null,null,null,null,null,null,null,null,"","","","","","","","",""]
[null,"Inline",123,"NEW","Softgoods","Men",null,"HARVEST TECH TEE C&B LOGO","ハーベスト テック ティ シーアンドビー ロゴ","Merlot/Plaza Taupe",5500,3,"TBDS23016","S","S","-",null,null,null,null,null,null,null,null,null,null,null,null,null,null,"","","","","","","","",""]
[null,"Inline",123,"NEW","Softgoods","Men",null,"HARVEST TECH TEE C&B LOGO","ハーベスト テック ティ シーアンドビー ロゴ","Merlot/Plaza Taupe",5500,3,"TBDS23016","M","M","-",null,null,null,null,null,null,null,null,null,null,null,null,null,null,"","","","","","","","",""]
[null,"Inline",123,"NEW","Softgoods","Men",null,"HARVEST TECH TEE C&B LOGO","ハーベスト テック ティ シーアンドビー ロゴ","Merlot/Plaza Taupe",5500,3,"TBDS23016","L","L","-",null,null,null,null,null,null,null,null,null,null,null,null,null,null,"","","","","","","","",""]
[null,"Inline",123,"NEW","Softgoods","Men",null,"HARVEST TECH TEE C&B LOGO","ハーベスト テック ティ シーアンドビー ロゴ","Merlot/Plaza Taupe",5500,3,"TBDS23016","XL","XL","-",null,null,null,null,null,null,null,null,null,null,null,null,null,null,"","","","","","","","",""]
[null,"Inline",123,"NEW","Softgoods","Men",null,"HARVEST TECH TEE C&B LOGO","ハーベスト テック ティ シーアンドビー ロゴ","Black/Campsite",5500,3,"TBDS23017","S","S","-",null,null,null,null,null,null,null,null,null,null,null,null,null,null,"","","","","","","","",""]
[null,"Inline",123,"NEW","Softgoods","Men",null,"HARVEST TECH TEE C&B LOGO","ハーベスト テック ティ シーアンドビー ロゴ","Black/Campsite",5500,3,"TBDS23017","M","M","-",null,null,null,null,null,null,null,null,null,null,null,null,null,null,"","","","","","","","",""]
[null,"Inline",123,"NEW","Softgoods","Men",null,"HARVEST TECH TEE C&B LOGO","ハーベスト テック ティ シーアンドビー ロゴ","Black/Campsite",5500,3,"TBDS23017","L","L","-",null,null,null,null,null,null,null,null,null,null,null,null,null,null,"","","","","","","","",""]
[null,"Inline",123,"NEW","Softgoods","Men",null,"HARVEST TECH TEE C&B LOGO","ハーベスト テック ティ シーアンドビー ロゴ","Black/Campsite",5500,3,"TBDS23017","XL","XL","-",null,null,null,null,null,null,null,null,null,null,null,null,null,null,"","","","","","","","",""]
[null,"Inline",124,"NEW","Softgoods","Men",null,"HARVEST TECH TEE RISE","ハーベスト テック ティ ライズ","White",6000,3,"TBDS23022","S","S","-",null,null,null,null,null,null,null,null,null,null,null,null,null,null,"","","","","","","","",""]
[null,"Inline",124,"NEW","Softgoods","Men",null,"HARVEST TECH TEE RISE","ハーベスト テック ティ ライズ","White",6000,3,"TBDS23022","M","M","-",null,null,null,null,null,null,null,null,null,null,null,null,null,null,"","","","","","","","",""]
[null,"Inline",124,"NEW","Softgoods","Men",null,"HARVEST TECH TEE RISE","ハーベスト テック ティ ライズ","White",6000,3,"TBDS23022","L","L","-",null,null,null,null,null,null,null,null,null,null,null,null,null,null,"","","","","","","","",""]
[null,"Inline",124,"NEW","Softgoods","Men",null,"HARVEST TECH TEE RISE","ハーベスト テック ティ ライズ","White",6000,3,"TBDS23022","XL","XL","-",null,null,null,null,null,null,null,null,null,null,null,null,null,null,"","","","","","","","",""]
[null,"Inline",124,"NEW","Softgoods","Men",null,"HARVEST TECH TEE RISE","ハーベスト テック ティ ライズ","Timberwolf",6000,3,"TBDS23023","S","S","-",null,null,null,null,null,null,null,null,null,null,null,null,null,null,"","","","","","","","",""]
[null,"Inline",124,"NEW","Softgoods","Men",null,"HARVEST TECH TEE RISE","ハーベスト テック ティ ライズ","Timberwolf",6000,3,"TBDS23023","M","M","-",null,null,null,null,null,null,null,null,null,null,null,null,null,null,"","","","","","","","",""]
[null,"Inline",124,"NEW","Softgoods","Men",null,"HARVEST TECH TEE RISE","ハーベスト テック ティ ライズ","Timberwolf",6000,3,"TBDS23023","L","L","-",null,null,null,null,null,null,null,null,null,null,null,null,null,null,"","","","","","","","",""]
[null,"Inline",124,"NEW","Softgoods","Men",null,"HARVEST TECH TEE RISE","ハーベスト テック ティ ライズ","Timberwolf",6000,3,"TBDS23023","XL","XL","-",null,null,null,null,null,null,null,null,null,null,null,null,null,null,"","","","","","","","",""]
[null,"Inline",124,"NEW","Softgoods","Men",null,"HARVEST TECH TEE CALM","ハーベスト テック ティ カーム","White",6000,3,"TBDS23024","S","S","-",null,null,null,null,null,null,null,null,null,null,null,null,null,null,"","","","","","","","",""]
[null,"Inline",124,"NEW","Softgoods","Men",null,"HARVEST TECH TEE CALM","ハーベスト テック ティ カーム","White",6000,3,"TBDS23024","M","M","-",null,null,null,null,null,null,null,null,null,null,null,null,null,null,"","","","","","","","",""]
[null,"Inline",124,"NEW","Softgoods","Men",null,"HARVEST TECH TEE CALM","ハーベスト テック ティ カーム","White",6000,3,"TBDS23024","L","L","-",null,null,null,null,null,null,null,null,null,null,null,null,null,null,"","","","","","","","",""]
[null,"Inline",124,"NEW","Softgoods","Men",null,"HARVEST TECH TEE CALM","ハーベスト テック ティ カーム","White",6000,3,"TBDS23024","XL","XL","-",null,null,null,null,null,null,null,null,null,null,null,null,null,null,"","","","","","","","",""]
[null,"Inline",124,"NEW","Softgoods","Men",null,"HARVEST TECH TEE CALM","ハーベスト テック ティ カーム","Timberwolf",6000,3,"TBDS23025","S","S","-",null,null,null,null,null,null,null,null,null,null,null,null,null,null,"","","","","","","","",""]
[null,"Inline",124,"NEW","Softgoods","Men",null,"HARVEST TECH TEE CALM","ハーベスト テック ティ カーム","Timberwolf",6000,3,"TBDS23025","M","M","-",null,null,null,null,null,null,null,null,null,null,null,null,null,null,"","","","","","","","",""]
[null,"Inline",124,"NEW","Softgoods","Men",null,"HARVEST TECH TEE CALM","ハーベスト テック ティ カーム","Timberwolf",6000,3,"TBDS23025","L","L","-",null,null,null,null,null,null,null,null,null,null,null,null,null,null,"","","","","","","","",""]
[null,"Inline",124,"NEW","Softgoods","Men",null,"HARVEST TECH TEE CALM","ハーベスト テック ティ カーム","Timberwolf",6000,3,"TBDS23025","XL","XL","-",null,null,null,null,null,null,null,null,null,null,null,null,null,null,"","","","","","","","",""]
[null,"Inline",125,"NEW","Softgoods","Unisex",null,"HARVEST MATERIAL ADVENTURE TOTE","ハーベスト マテリアル アドベンチャー トート","White/Black",6000,3,"TBDS23072","OS","W52(30)xH37xD17cm","-",null,null,null,null,null,null,null,null,null,null,null,null,null,null,"","","","","","","","",""]
[null,"Inline",125,"NEW","Softgoods","Unisex",null,"HARVEST MATERIAL ADVENTURE TOTE","ハーベスト マテリアル アドベンチャー トート","Black/Black",6000,3,"TBDS23073","OS","W52(30)xH37xD17cm","-",null,null,null,null,null,null,null,null,null,null,null,null,null,null,"","","","","","","","",""]
[null,"Inline",125,"NEW","Softgoods","Unisex",null,"HARVEST MATERIAL MARKET TOTE","ハーベスト マテリアル マーケット トート","White/Black",4000,3,"TBDS23026","OS","W32XH24X6cm","-",null,null,null,null,null,null,null,null,null,null,null,null,null,null,"","","","","","","","",""]
[null,"Inline",125,"NEW","Softgoods","Unisex",null,"HARVEST MATERIAL MARKET TOTE","ハーベスト マテリアル マーケット トート","Navy/Red",4000,3,"TBDS23027","OS","W32XH24X6cm","-",null,null,null,null,null,null,null,null,null,null,null,null,null,null,"","","","","","","","",""]
[null,"Inline",125,"NEW","Softgoods","Unisex",null,"HARVEST MATERIAL MARKET TOTE","ハーベスト マテリアル マーケット トート","Safari/Green",4000,3,"TBDS23028","OS","W32XH24X6cm","-",null,null,null,null,null,null,null,null,null,null,null,null,null,null,"","","","","","","","",""]
[null,"Inline",125,"NEW","Softgoods","Unisex",null,"HARVEST MATERIAL MARKET TOTE","ハーベスト マテリアル マーケット トート","Fawn/Birch",4000,3,"TBDS23029","OS","W32XH24X6cm","-",null,null,null,null,null,null,null,null,null,null,null,null,null,null,"","","","","","","","",""]
[null,"Inline",125,"NEW","Softgoods","Unisex",null,"HARVEST MATERIAL MARKET TOTE","ハーベスト マテリアル マーケット トート","Black/Black",4000,3,"TBDS23030","OS","W32XH24X6cm","-",null,null,null,null,null,null,null,null,null,null,null,null,null,null,"","","","","","","","",""]
[null,"Inline",126,"NEW","Softgoods","Unisex",null,"HARVEST MATERIAL DAILY TOTE BAG","ハーベスト マテリアル デイリー トートバック","White/Black",3000,3,"TBDS23062","OS","W30xH40xD7cm","-",null,null,null,null,null,null,null,null,null,null,null,null,null,null,"","","","","","","","",""]
[null,"Inline",126,"NEW","Softgoods","Unisex",null,"HARVEST MATERIAL DAILY TOTE BAG","ハーベスト マテリアル デイリー トートバック","Navy/Red",3000,3,"TBDS23063","OS","W30xH40xD7cm","-",null,null,null,null,null,null,null,null,null,null,null,null,null,null,"","","","","","","","",""]
[null,"Inline",126,"NEW","Softgoods","Unisex",null,"HARVEST MATERIAL DAILY TOTE BAG","ハーベスト マテリアル デイリー トートバック","Safari/Green",3000,3,"TBDS23064","OS","W30xH40xD7cm","-",null,null,null,null,null,null,null,null,null,null,null,null,null,null,"","","","","","","","",""]
[null,"Inline",126,"NEW","Softgoods","Unisex",null,"HARVEST MATERIAL DAILY TOTE BAG","ハーベスト マテリアル デイリー トートバック","Fawn/Birch",3000,3,"TBDS23065","OS","W30xH40xD7cm","-",null,null,null,null,null,null,null,null,null,null,null,null,null,null,"","","","","","","","",""]
[null,"Inline",126,"NEW","Softgoods","Unisex",null,"HARVEST MATERIAL DAILY TOTE BAG","ハーベスト マテリアル デイリー トートバック","Black/Black",3000,3,"TBDS23066","OS","W30xH40xD7cm","-",null,null,null,null,null,null,null,null,null,null,null,null,null,null,"","","","","","","","",""]
[null,"Inline",126,"NEW","Softgoods","Unisex",null,"HARVEST MATERIAL SACOCHE III","ハーベスト マテリアル サコッシュ スリー","White/Black",3500,3,"TBDS23031","OS","OS","-",null,null,null,null,null,null,null,null,null,null,null,null,null,null,"","","","","","","","",""]
[null,"Inline",126,"NEW","Softgoods","Unisex",null,"HARVEST MATERIAL SACOCHE III","ハーベスト マテリアル サコッシュ スリー","Navy/Red",3500,3,"TBDS23032","OS","OS","-",null,null,null,null,null,null,null,null,null,null,null,null,null,null,"","","","","","","","",""]
[null,"Inline",126,"NEW","Softgoods","Unisex",null,"HARVEST MATERIAL SACOCHE III","ハーベスト マテリアル サコッシュ スリー","Safari/Green",3500,3,"TBDS23033","OS","OS","-",null,null,null,null,null,null,null,null,null,null,null,null,null,null,"","","","","","","","",""]
[null,"Inline",126,"C/O","Softgoods","Unisex",null,"HARVEST MATERIAL SACOCHE III","ハーベスト マテリアル サコッシュ スリー","Black/Black",3500,3,"1027018","OS","OS","195208114441",null,null,null,null,null,null,null,null,null,null,null,null,null,null,"","","","","","","","",""]
[null,"Inline",127,"NEW","Softgoods","Unisex",null,"HARVEST MATERIAL MULCHWAY SACOCHE","ハーベス マテリアル マルチウェイ サコッシュ","White/Black",3800,3,"TBDS23067","OS","W20xH25(H30)xD2cm","-",null,null,null,null,null,null,null,null,null,null,null,null,null,null,"","","","","","","","",""]
[null,"Inline",127,"NEW","Softgoods","Unisex",null,"HARVEST MATERIAL MULCHWAY SACOCHE","ハーベス マテリアル マルチウェイ サコッシュ","Navy/Red",3800,3,"TBDS23068","OS","W20xH25(H30)xD2cm","-",null,null,null,null,null,null,null,null,null,null,null,null,null,null,"","","","","","","","",""]
[null,"Inline",127,"NEW","Softgoods","Unisex",null,"HARVEST MATERIAL MULCHWAY SACOCHE","ハーベス マテリアル マルチウェイ サコッシュ","Safari/Green",3800,3,"TBDS23069","OS","W20xH25(H30)xD2cm","-",null,null,null,null,null,null,null,null,null,null,null,null,null,null,"","","","","","","","",""]
[null,"Inline",127,"NEW","Softgoods","Unisex",null,"HARVEST MATERIAL MULCHWAY SACOCHE","ハーベス マテリアル マルチウェイ サコッシュ","Fawn/Birch",3800,3,"TBDS23070","OS","W20xH25(H30)xD2cm","-",null,null,null,null,null,null,null,null,null,null,null,null,null,null,"","","","","","","","",""]
[null,"Inline",127,"NEW","Softgoods","Unisex",null,"HARVEST MATERIAL MULCHWAY SACOCHE","ハーベス マテリアル マルチウェイ サコッシュ","Black/Black",3800,3,"TBDS23071","OS","W20xH25(H30)xD2cm","-",null,null,null,null,null,null,null,null,null,null,null,null,null,null,"","","","","","","","",""]
[null,"Inline",127,"NEW","Softgoods","Unisex",null,"HARVEST MATERIAL MODULAR TRAVEL POUCH","ハーベスト マテリアル モジュラー トラベル ポーチ","White/Black",3200,3,"TBDS23058","OS","W12xH19xD4cm","-",null,null,null,null,null,null,null,null,null,null,null,null,null,null,{"$f":"IF(SUMIF($Q$17:$AD$17,AE$17,$Q206:$AD206)=0,\"\",SUMIF($Q$17:$AD$17,AE$17,$Q206:$AD206))","v":""},"",{"$f":"IF(SUM(AE206:AF206)=0,\"\",SUM(AE206:AF206))","v":""},{"$f":"IF(ISERROR($K206*AE206),\"\",$K206*AE206)","v":""},{"$f":"IF(ISERROR($K206*AF206),\"\",$K206*AF206)","v":""},{"$f":"IF(SUM(AH206:AI206)=0,\"\",SUM(AH206:AI206))","v":""},{"$f":"IF(ISERROR($K206*AE206*$C$9),\"\",$K206*AE206*$C$9)","v":""},{"$f":"IF(ISERROR($K206*AF206*$C$9),\"\",$K206*AF206*$C$9)","v":""},{"$f":"IF(SUM(AK206:AL206)=0,\"\",SUM(AK206:AL206))","v":""}]
[null,"Inline",127,"NEW","Softgoods","Unisex",null,"HARVEST MATERIAL MODULAR TRAVEL POUCH","ハーベスト マテリアル モジュラー トラベル ポーチ","Navy/Red",3200,3,"TBDS23059","OS","W12xH19xD4cm","-",null,null,null,null,null,null,null,null,null,null,null,null,null,null,"","","","","","","","",""]
[null,"Inline",127,"NEW","Softgoods","Unisex",null,"HARVEST MATERIAL MODULAR TRAVEL POUCH","ハーベスト マテリアル モジュラー トラベル ポーチ","Safari/Green",3200,3,"TBDS23060","OS","W12xH19xD4cm","-",null,null,null,null,null,null,null,null,null,null,null,null,null,null,"","","","","","","","",""]
[null,"Inline",127,"NEW","Softgoods","Unisex",null,"HARVEST MATERIAL MODULAR TRAVEL POUCH","ハーベスト マテリアル モジュラー トラベル ポーチ","Fawn/Birch",3200,3,"TBDS23095","OS","W12xH19xD4cm","-",null,null,null,null,null,null,null,null,null,null,null,null,null,null,"","","","","","","","",""]
[null,"Inline",127,"NEW","Softgoods","Unisex",null,"HARVEST MATERIAL MODULAR TRAVEL POUCH","ハーベスト マテリアル モジュラー トラベル ポーチ","Black/Black",3200,3,"TBDS23061","OS","W12xH19xD4cm","-",null,null,null,null,null,null,null,null,null,null,null,null,null,null,"","","","","","","","",""]
[null,"Inline",128,"NEW","Softgoods","Unisex",null,"HARVEST MATERIAL MODULAR STRAP & POUCH","ハーベスト マテリアル モジュラー ストラップアンドポーチ","White/Black",2700,3,"TBDS23042","OS","ポーチ W18xH10xD2cm\nストラップ 100〜150cm","-",null,null,null,null,null,null,null,null,null,null,null,null,null,null,"","","","","","","","",""]
[null,"Inline",128,"NEW","Softgoods","Unisex",null,"HARVEST MATERIAL MODULAR STRAP & POUCH","ハーベスト マテリアル モジュラー ストラップアンドポーチ","Navy/Red",2700,3,"TBDS23043","OS","ポーチ W18xH10xD2cm\nストラップ 100〜150cm","-",null,null,null,null,null,null,null,null,null,null,null,null,null,null,"","","","","","","","",""]
[null,"Inline",128,"NEW","Softgoods","Unisex",null,"HARVEST MATERIAL MODULAR STRAP & POUCH","ハーベスト マテリアル モジュラー ストラップアンドポーチ","Safari/Green",2700,3,"TBDS23044","OS","ポーチ W18xH10xD2cm\nストラップ 100〜150cm","-",null,null,null,null,null,null,null,null,null,null,null,null,null,null,"","","","","","","","",""]
[null,"Inline",128,"NEW","Softgoods","Unisex",null,"HARVEST MATERIAL MODULAR STRAP & POUCH","ハーベスト マテリアル モジュラー ストラップアンドポーチ","Fawn/Birch",2700,3,"TBDS23045","OS","ポーチ W18xH10xD2cm\nストラップ 100〜150cm","-",null,null,null,null,null,null,null,null,null,null,null,null,null,null,"","","","","","","","",""]
[null,"Inline",128,"NEW","Softgoods","Unisex",null,"HARVEST MATERIAL MODULAR STRAP & POUCH","ハーベスト マテリアル モジュラー ストラップアンドポーチ","Black/Black",2700,3,"1027029","OS","OS","195208114571",null,null,null,null,null,null,null,null,null,null,null,null,null,null,"","","","","","","","",""]
[null,"Inline",128,"NEW","Softgoods","Unisex",null,"HARVEST MATERIAL FOLDABLE WALLET","ハーベスト フォルダブル ウォレット","White/Black",2400,3,"TBDS23053","OS","W7cm(20cm広げた時)xH11cm ","-",null,null,null,null,null,null,null,null,null,null,null,null,null,null,"","","","","","","","",""]
[null,"Inline",128,"NEW","Softgoods","Unisex",null,"HARVEST MATERIAL FOLDABLE WALLET","ハーベスト フォルダブル ウォレット","Navy/Red",2400,3,"TBDS23054","OS","W7cm(20cm広げた時)xH11cm ","-",null,null,null,null,null,null,null,null,null,null,null,null,null,null,"","","","","","","","",""]
[null,"Inline",128,"NEW","Softgoods","Unisex",null,"HARVEST MATERIAL FOLDABLE WALLET","ハーベスト フォルダブル ウォレット","Safari/Green",2400,3,"TBDS23055","OS","W7cm(20cm広げた時)xH11cm ","-",null,null,null,null,null,null,null,null,null,null,null,null,null,null,"","","","","","","","",""]
[null,"Inline",128,"NEW","Softgoods","Unisex",null,"HARVEST MATERIAL FOLDABLE WALLET","ハーベスト フォルダブル ウォレット","Fawn/Birch",2400,3,"TBDS23056","OS","W7cm(20cm広げた時)xH11cm ","-",null,null,null,null,null,null,null,null,null,null,null,null,null,null,"","","","","","","","",""]
[null,"Inline",128,"NEW","Softgoods","Unisex",null,"HARVEST MATERIAL FOLDABLE WALLET","ハーベスト フォルダブル ウォレット","Black/Black",2400,3,"TBDS23057","OS","W7cm(20cm広げた時)xH11cm ","-",null,null,null,null,null,null,null,null,null,null,null,null,null,null,"","","","","","","","",""]
[null,"Inline",129,"NEW","Softgoods","Unisex",null,"HARVEST MATERIAL LONG CARD HOLDER","ハーベスト マテリアル ロング カード ホルダー ","White/Black",1800,3,"TBDS23034","OS","W17×H10cm","-",null,null,null,null,null,null,null,null,null,null,null,null,null,null,"","","","","","","","",""]
[null,"Inline",129,"NEW","Softgoods","Unisex",null,"HARVEST MATERIAL LONG CARD HOLDER","ハーベスト マテリアル ロング カード ホルダー ","Navy/Red",1800,3,"TBDS23035","OS","W17×H10cm","-",null,null,null,null,null,null,null,null,null,null,null,null,null,null,"","","","","","","","",""]
[null,"Inline",129,"NEW","Softgoods","Unisex",null,"HARVEST MATERIAL LONG CARD HOLDER","ハーベスト マテリアル ロング カード ホルダー ","Safari/Green",1800,3,"TBDS23036","OS","W17×H10cm","-",null,null,null,null,null,null,null,null,null,null,null,null,null,null,"","","","","","","","",""]
[null,"Inline",129,"NEW","Softgoods","Unisex",null,"HARVEST MATERIAL LONG CARD HOLDER","ハーベスト マテリアル ロング カード ホルダー ","Fawn/Birch",1800,3,"TBDS23037","OS","W17×H10cm","-",null,null,null,null,null,null,null,null,null,null,null,null,null,null,"","","","","","","","",""]
[null,"Inline",129,"C/O","Softgoods","Unisex",null,"HARVEST MATERIAL LONG CARD HOLDER","ハーベスト マテリアル ロング カード ホルダー ","Black/Black",1800,3,"1025938","OS","OS","191190920336",null,null,null,null,null,null,null,null,null,null,null,null,null,null,"","","","","","","","",""]
[null,"Inline",129,"NEW","Softgoods","Unisex",null,"HARVEST MATERIAL COIN CASE","ハーベスト マテリアル コイン ケース","White/Black",1400,3,"TBDS23038","OS","W11×H9cm","-",null,null,null,null,null,null,null,null,null,null,null,null,null,null,"","","","","","","","",""]
[null,"Inline",129,"NEW","Softgoods","Unisex",null,"HARVEST MATERIAL COIN CASE","ハーベスト マテリアル コイン ケース","Navy/Red",1400,3,"TBDS23039","OS","W11×H9cm","-",null,null,null,null,null,null,null,null,null,null,null,null,null,null,"","","","","","","","",""]
[null,"Inline",129,"NEW","Softgoods","Unisex",null,"HARVEST MATERIAL COIN CASE","ハーベスト マテリアル コイン ケース","Safari/Green",1400,3,"TBDS23040","OS","W11×H9cm","-",null,null,null,null,null,null,null,null,null,null,null,null,null,null,"","","","","","","","",""]
[null,"Inline",129,"NEW","Softgoods","Unisex",null,"HARVEST MATERIAL COIN CASE","ハーベスト マテリアル コイン ケース","Fawn/Birch",1400,3,"TBDS23041","OS","W11×H9cm","-",null,null,null,null,null,null,null,null,null,null,null,null,null,null,"","","","","","","","",""]
[null,"Inline",129,"C/O","Softgoods","Unisex",null,"HARVEST MATERIAL COIN CASE","ハーベスト マテリアル コイン ケース","Black/Black",1400,3,"1025942","OS","OS","191190920374",null,null,null,null,null,null,null,null,null,null,null,null,null,null,"","","","","","","","",""]
[null,"Inline",130,"NEW","Softgoods","Unisex",null,"KHT RECYCLE SHOULDER BAG III","ケーエイチティー リサイクル ショルダーバック スリー","White",3700,3,"TBDS23048","OS","バッグ W36xH65xD24cm\nポーチ W11xH18cm","-",null,null,null,null,null,null,null,null,null,null,null,null,null,null,"","","","","","","","",""]
[null,"Inline",130,"C/O","Softgoods","Unisex",null,"KHT RECYCLE SHOULDER BAG III","ケーエイチティー リサイクル ショルダーバック スリー","Bison",3700,3,"1027035","OS","OS","195208114656",null,null,null,null,null,null,null,null,null,null,null,null,null,null,"","","","","","","","",""]
[null,"Inline",130,"C/O","Softgoods","Unisex",null,"KHT RECYCLE SHOULDER BAG III","ケーエイチティー リサイクル ショルダーバック スリー","Dark Olive",3700,3,"1027036","OS","OS","195208114663",null,null,null,null,null,null,null,null,null,null,null,null,null,null,"","","","","","","","",""]
[null,"Inline",130,"C/O","Softgoods","Unisex",null,"KHT RECYCLE SHOULDER BAG III","ケーエイチティー リサイクル ショルダーバック スリー","Black",3700,3,"1027037","OS","OS","195208114670",null,null,null,null,null,null,null,null,null,null,null,null,null,null,"","","","","","","","",""]
[null,"Inline",130,"NEW","Softgoods","Unisex",null,"KHT RECYCLE WALLET SHOPPING BAG","ケーエイチティー リサイクル ウォレット ショッピングバッグ","White",3000,3,"TBDS23047","OS","バッグ W25xH45xD20cm\nウォレットW11xH8cm","-",null,null,null,null,null,null,null,null,null,null,null,null,null,null,"","","","","","","","",""]
[null,"Inline",130,"C/O","Softgoods","Unisex",null,"KHT RECYCLE WALLET SHOPPING BAG","ケーエイチティー リサイクル ウォレット ショッピングバッグ","Bison",3000,3,"1027034","OS","OS","195208114649",null,null,null,null,null,null,null,null,null,null,null,null,null,null,"","","","","","","","",""]
[null,"Inline",130,"C/O","Softgoods","Unisex",null,"KHT RECYCLE WALLET SHOPPING BAG","ケーエイチティー リサイクル ウォレット ショッピングバッグ","Dark Olive",3000,3,"1026524","OS","OS","195208034909",null,null,null,null,null,null,null,null,null,null,null,null,null,null,"","","","","","","","",""]
[null,"Inline",130,"C/O","Softgoods","Unisex",null,"KHT RECYCLE WALLET SHOPPING BAG","ケーエイチティー リサイクル ウォレット ショッピングバッグ","Black",3000,3,"1026525","OS","OS","195208034916",null,null,null,null,null,null,null,null,null,null,null,null,null,null,"","","","","","","","",""]
[null,"Inline",131,"NEW","Softgoods","Unisex",null,"KHT RECYCLE DRAWSTRING BAG IN POUCH","ケーエイチティー リサイクル ドローストリング バッグ イン ポーチ　","White",3300,3,"TBDS23049","OS","バッグ W21xH45xD20cm\nポーチ W14xH11cm","-",null,null,null,null,null,null,null,null,null,null,null,null,null,null,"","","","","","","","",""]
[null,"Inline",131,"NEW","Softgoods","Unisex",null,"KHT RECYCLE DRAWSTRING BAG IN POUCH","ケーエイチティー リサイクル ドローストリング バッグ イン ポーチ　","Bison",3300,3,"TBDS23050","OS","バッグ W21xH45xD20cm\nポーチ W14xH11cm","-",null,null,null,null,null,null,null,null,null,null,null,null,null,null,"","","","","","","","",""]
[null,"Inline",131,"NEW","Softgoods","Unisex",null,"KHT RECYCLE DRAWSTRING BAG IN POUCH","ケーエイチティー リサイクル ドローストリング バッグ イン ポーチ　","Dark Olive",3300,3,"TBDS23051","OS","バッグ W21xH45xD20cm\nポーチ W14xH11cm","-",null,null,null,null,null,null,null,null,null,null,null,null,null,null,"","","","","","","","",""]
[null,"Inline",131,"NEW","Softgoods","Unisex",null,"KHT RECYCLE DRAWSTRING BAG IN POUCH","ケーエイチティー リサイクル ドローストリング バッグ イン ポーチ　","Black",3300,3,"TBDS23052","OS","バッグ W21xH45xD20cm\nポーチ W14xH11cm","-",null,null,null,null,null,null,null,null,null,null,null,null,null,null,"","","","","","","","",""]
[null,"Inline",131,"NEW","Softgoods","Unisex",null,"KHT RECYCLE SACOCHE BAG IN BAG","ケーエイチティー リサイクル サコッシュ バッグ イン バッグ","White",3500,3,"TBDS23046","OS","サコッシュW25xH20cm\nトートW32xH38xD6cm","-",null,null,null,null,null,null,null,null,null,null,null,null,null,null,"","","","","","","","",""]
[null,"Inline",131,"C/O","Softgoods","Unisex",null,"KHT RECYCLE SACOCHE BAG IN BAG","ケーエイチティー リサイクル サコッシュ バッグ イン バッグ","Bison",3500,3,"1027031","OS","サコッシュW25xH20cm\nトートW32xH38xD6cm","195208114618",null,null,null,null,null,null,null,null,null,null,null,null,null,null,"","","","","","","","",""]
[null,"Inline",131,"C/O","Softgoods","Unisex",null,"KHT RECYCLE SACOCHE BAG IN BAG","ケーエイチティー リサイクル サコッシュ バッグ イン バッグ","Dark Olive",3500,3,"1027032","OS","サコッシュW25xH20cm\nトートW32xH38xD6cm","195208114625",null,null,null,null,null,null,null,null,null,null,null,null,null,null,"","","","","","","","",""]
[null,"Inline",131,"C/O","Softgoods","Unisex",null,"KHT RECYCLE SACOCHE BAG IN BAG","ケーエイチティー リサイクル サコッシュ バッグ イン バッグ","Black",3500,3,"1027033","OS","サコッシュW25xH20cm\nトートW32xH38xD6cm","195208114632",null,null,null,null,null,null,null,null,null,null,null,null,null,null,"","","","","","","","",""]
[null,"Inline",132,"C/O","Softgoods","Unisex",null,"FUROSHIKI 01","フロシキ ゼロワン","Birch",3400,3,"1027038","OS","OS","195208114687",null,null,null,null,null,null,null,null,null,null,null,null,null,null,"","","","","","","","",""]
[null,"Inline",132,"C/O","Softgoods","Unisex",null,"FUROSHIKI 01","フロシキ ゼロワン","Bright Cobalt",3400,3,"1027039","OS","OS","195208114694",null,null,null,null,null,null,null,null,null,null,null,null,null,null,"","","","","","","","",""]
[null,"Inline",132,"C/O","Softgoods","Unisex",null,"FUROSHIKI 01","フロシキ ゼロワン","Black",3400,3,"1027040","OS","OS","195208114700",null,null,null,null,null,null,null,null,null,null,null,null,null,null,"","","","","","","","",""]
[null,"Inline",132,"C/O","Softgoods","Unisex",null,"FUROSHIKI 02","フロシキ ゼロツー","Birch",4200,3,"1027042","OS","OS","195208114748",null,null,null,null,null,null,null,null,null,null,null,null,null,null,"","","","","","","","",""]
[null,"Inline",132,"C/O","Softgoods","Unisex",null,"FUROSHIKI 02","フロシキ ゼロツー","Bright Cobalt",4200,3,"1027043","OS","OS","195208114755",null,null,null,null,null,null,null,null,null,null,null,null,null,null,"","","","","","","","",""]
[null,"Inline",132,"C/O","Softgoods","Unisex",null,"FUROSHIKI 02","フロシキ ゼロツー","Black",4200,3,"1027044","OS","OS","195208114762",null,null,null,null,null,null,null,null,null,null,null,null,null,null,"","","","","","","","",""]
[null,"Inline",133,"NEW","Softgoods","Unisex",null,"KEEN LOGO NYLON BANGEE CAP","キーン ロゴ ナイロン バンジー キャップ","Timberwolf/Toasted Coconut",3900,3,"TBDS23074","OS","OS","-",null,null,null,null,null,null,null,null,null,null,null,null,null,null,"","","","","","","","",""]
[null,"Inline",133,"NEW","Softgoods","Unisex",null,"KEEN LOGO NYLON BANGEE CAP","キーン ロゴ ナイロン バンジー キャップ","Magnet/Vapor",3900,3,"TBDS23075","OS","OS","-",null,null,null,null,null,null,null,null,null,null,null,null,null,null,"","","","","","","","",""]
[null,"Inline",133,"NEW","Softgoods","Unisex",null,"KEEN LOGO NYLON BANGEE CAP","キーン ロゴ ナイロン バンジー キャップ","Dark Forest/Dark Forest",3900,3,"TBDS23076","OS","OS","-",null,null,null,null,null,null,null,null,null,null,null,null,null,null,"","","","","","","","",""]
[null,"Inline",133,"NEW","Softgoods","Unisex",null,"KEEN LOGO NYLON BANGEE CAP","キーン ロゴ ナイロン バンジー キャップ","Black/Black",3900,3,"TBDS23077","OS","OS","-",null,null,null,null,null,null,null,null,null,null,null,null,null,null,"","","","","","","","",""]
[null,"Inline",133,"NEW","Softgoods","Unisex",null,"KEEN LOGO C/T CAP","キーン ロゴ コットン キャップ","Safari/Sea Moss",3600,3,"TBDS23078","OS","OS","-",null,null,null,null,null,null,null,null,null,null,null,null,null,null,"","","","","","","","",""]
[null,"Inline",133,"NEW","Softgoods","Unisex",null,"KEEN LOGO C/T CAP","キーン ロゴ コットン キャップ","Azure Blue/Skycaptain",3600,3,"TBDS23079","OS","OS","-",null,null,null,null,null,null,null,null,null,null,null,null,null,null,"","","","","","","","",""]
[null,"Inline",133,"NEW","Softgoods","Unisex",null,"KEEN LOGO C/T CAP","キーン ロゴ コットン キャップ","Star White/Black",3600,3,"TBDS23080","OS","OS","-",null,null,null,null,null,null,null,null,null,null,null,null,null,null,"","","","","","","","",""]
[null,"Inline",133,"NEW","Softgoods","Unisex",null,"KEEN LOGO C/T CAP","キーン ロゴ コットン キャップ","Black/Yellow",3600,3,"TBDS23081","OS","OS","-",null,null,null,null,null,null,null,null,null,null,null,null,null,null,"","","","","","","","",""]

{"sheet":"Sheet1","index":1,"n_rows":23,"n_cols":1,"rows_kept":23,"cut":false,"hidden":true,"merged":[]}
["稲葉 岳士"]
["川手 琢矢"]
["栗原 隆馬"]
["高馬 勝典"]
["太田 優"]
["小池 誉哲"]
["鈴木 賢人"]
["古賀 雄介"]
["池野 恵梨香"]
["岸間 俊篤"]
["山崎 晋一"]
["齊藤 陸"]
["藤原 麻子"]
["林 竜也"]
["KEEN Online"]
["Retail"]
["Outlet"]
["マーケティング"]
["プロダクト"]
["岡崎 彰良（オールインオール）"]
["坂口 信司（アローリーフ）"]
["真壁 毅（Desca）"]
["泉田 和明（ケイズ）"]